[Event "Titled Tuesday Blitz April 26 Early 2022"]
[White "Itkis, Boris"]
[Black "Buchenau, Frank"]
[WhiteFideId "1209167"]
[BlackFideId "4604350"]
[WhiteElo "2207"]
[BlackElo "2193"]
[Result "1-0"]
[Round "10"]
[TimeControl "180+1"]
[Date "2022.04.26"]
[WhiteClock "0:00:52"]
[BlackClock "0:00:11"]

1. b3 {[%clk 0:03:00]}  d5 {[%clk 0:02:59]} 2. Nf3 {[%clk 0:03:00]}  Bg4 {[%clk 0:02:59]} 3. e3 {[%clk 0:03:00]}  Nf6 {[%clk 0:02:54]} 4. Bb2 {[%clk 0:02:59]}  e6 {[%clk 0:02:53]} 5. h3 {[%clk 0:02:59]}  Bh5 {[%clk 0:02:53]} 6. d4 {[%clk 0:03:00]}  Bb4+ {[%clk 0:02:51]} 7. Nbd2 {[%clk 0:02:59]}  O-O {[%clk 0:02:49]} 8. Be2 {[%clk 0:02:59]}  Ne4 {[%clk 0:02:47]} 9. O-O {[%clk 0:02:47]}  Nc3 {[%clk 0:02:39]} 10. Qe1 {[%clk 0:02:46]}  Nxe2+ {[%clk 0:02:34]} 11. Qxe2 {[%clk 0:02:46]}  Bxd2 {[%clk 0:02:31]} 12. Qxd2 {[%clk 0:02:46]}  Bxf3 {[%clk 0:02:31]} 13. gxf3 {[%clk 0:02:47]}  Qg5+ {[%clk 0:02:30]} 14. Kh2 {[%clk 0:02:47]}  Qh5 {[%clk 0:02:26]} 15. f4 {[%clk 0:02:41]}  Nd7 {[%clk 0:02:23]} 16. Rg1 {[%clk 0:02:38]}  Nf6 {[%clk 0:02:21]} 17. Rg2 {[%clk 0:02:24]}  Ne4 {[%clk 0:02:16]} 18. Qd1 {[%clk 0:02:23]}  Qxd1 {[%clk 0:02:12]} 19. Rxd1 {[%clk 0:02:24]}  a5 {[%clk 0:02:08]} 20. f3 {[%clk 0:02:19]}  Nd6 {[%clk 0:02:07]} 21. Rdg1 {[%clk 0:02:17]}  g6 {[%clk 0:02:06]} 22. a4 {[%clk 0:02:07]}  Nf5 {[%clk 0:02:00]} 23. Re2 {[%clk 0:02:07]}  Rfd8 {[%clk 0:01:57]} 24. Rd1 {[%clk 0:02:06]}  c6 {[%clk 0:01:49]} 25. e4 {[%clk 0:02:05]}  Ng7 {[%clk 0:01:34]} 26. Bc1 {[%clk 0:01:52]}  b5 {[%clk 0:01:30]} 27. Be3 {[%clk 0:01:40]}  bxa4 {[%clk 0:01:25]} 28. bxa4 {[%clk 0:01:40]}  Rdb8 {[%clk 0:01:24]} 29. Ra1 {[%clk 0:01:37]}  Rb2 {[%clk 0:01:21]} 30. Kg2 {[%clk 0:01:37]}  Rab8 {[%clk 0:01:17]} 31. Kf2 {[%clk 0:01:37]}  Ne8 {[%clk 0:01:10]} 32. Bd2 {[%clk 0:01:36]}  Rxc2 {[%clk 0:01:04]} 33. Bxa5 {[%clk 0:01:36]}  Rxe2+ {[%clk 0:01:00]} 34. Kxe2 {[%clk 0:01:37]}  Rb2+ {[%clk 0:00:54]} 35. Ke3 {[%clk 0:01:36]}  Nd6 {[%clk 0:00:54]} 36. Bc3 {[%clk 0:01:27]}  Rb3 {[%clk 0:00:52]} 37. Kd3 {[%clk 0:01:18]}  dxe4+ {[%clk 0:00:48]} 38. fxe4 {[%clk 0:01:18]}  Nxe4 {[%clk 0:00:40]} 39. Kxe4 {[%clk 0:01:18]}  Rxc3 {[%clk 0:00:40]} 40. a5 {[%clk 0:01:18]}  Rb3 {[%clk 0:00:20]} 41. a6 {[%clk 0:01:18]}  Rb8 {[%clk 0:00:20]} 42. a7 {[%clk 0:01:18]}  Ra8 {[%clk 0:00:20]} 43. Ke5 {[%clk 0:01:19]}  Kg7 {[%clk 0:00:14]} 44. Kd6 {[%clk 0:01:19]}  Kf6 {[%clk 0:00:14]} 45. Kxc6 {[%clk 0:01:19]}  Kf5 {[%clk 0:00:13]} 46. Kb7 {[%clk 0:00:52]}  Re8 {[%clk 0:00:13]} 47. a8=Q {[%clk 0:00:50]}  Rxa8 {[%clk 0:00:13]} 48. Kxa8 {[%clk 0:00:51]}  Kxf4 {[%clk 0:00:12]} 49. Rf1+ {[%clk 0:00:51]}  Ke4 {[%clk 0:00:11]} 50. Rxf7 {[%clk 0:00:51]}  Kxd4 {[%clk 0:00:11]} 51. Rxh7 {[%clk 0:00:52]}  Ke4 {[%clk 0:00:11]} 52. Rf7 {[%clk 0:00:52]} 1-0


[Site "https://www.chess.com"]

[Event "Titled Tuesday Blitz April 26 Early 2022"]
[White "Jobava, Baadur"]
[Black "Moiseenko, Alexander"]
[WhiteFideId "13601520"]
[BlackFideId "14102560"]
[WhiteElo "2617"]
[BlackElo "2577"]
[Result "1/2-1/2"]
[Round "10"]
[TimeControl "180+1"]
[Date "2022.04.26"]
[WhiteClock "0:01:08"]
[BlackClock "0:00:06"]

1. e4 {[%clk 0:02:56]}  c5 {[%clk 0:02:59]} 2. Nf3 {[%clk 0:02:55]}  Nc6 {[%clk 0:03:00]} 3. d4 {[%clk 0:02:56]}  cxd4 {[%clk 0:03:00]} 4. Nxd4 {[%clk 0:02:57]}  Nf6 {[%clk 0:03:01]} 5. Nc3 {[%clk 0:02:56]}  e5 {[%clk 0:03:01]} 6. Ndb5 {[%clk 0:02:56]}  d6 {[%clk 0:03:02]} 7. Nd5 {[%clk 0:02:57]}  Nxd5 {[%clk 0:03:02]} 8. exd5 {[%clk 0:02:58]}  Nb8 {[%clk 0:03:02]} 9. a4 {[%clk 0:02:55]}  Be7 {[%clk 0:03:01]} 10. Be2 {[%clk 0:02:56]}  O-O {[%clk 0:03:01]} 11. O-O {[%clk 0:02:56]}  f5 {[%clk 0:02:54]} 12. Re1 {[%clk 0:02:54]}  Nd7 {[%clk 0:02:47]} 13. a5 {[%clk 0:02:54]}  a6 {[%clk 0:02:35]} 14. Nc3 {[%clk 0:02:53]}  Kh8 {[%clk 0:02:08]} 15. Ra3 {[%clk 0:02:53]}  Bg5 {[%clk 0:02:01]} 16. Bxg5 {[%clk 0:02:47]}  Qxg5 {[%clk 0:02:01]} 17. Na4 {[%clk 0:02:48]}  e4 {[%clk 0:01:58]} 18. Qd4 {[%clk 0:02:46]}  Ne5 {[%clk 0:01:54]} 19. Nb6 {[%clk 0:02:46]}  Rb8 {[%clk 0:01:30]} 20. Rc3 {[%clk 0:02:35]}  f4 {[%clk 0:01:20]} 21. Nxc8 {[%clk 0:02:35]}  f3 {[%clk 0:01:07]} 22. Bf1 {[%clk 0:02:35]}  fxg2 {[%clk 0:01:01]} 23. Be2 {[%clk 0:02:31]}  Rbxc8 {[%clk 0:00:58]} 24. Rxc8 {[%clk 0:02:32]}  Rxc8 {[%clk 0:00:58]} 25. Qxe4 {[%clk 0:02:33]}  Qd2 {[%clk 0:00:56]} 26. Rd1 {[%clk 0:01:44]}  Qxc2 {[%clk 0:00:55]} 27. Qe3 {[%clk 0:01:39]}  Qxb2 {[%clk 0:00:50]} 28. Kxg2 {[%clk 0:01:39]}  h6 {[%clk 0:00:38]} 29. Rd4 {[%clk 0:01:31]}  Qc3 {[%clk 0:00:34]} 30. Qxc3 {[%clk 0:01:28]}  Rxc3 {[%clk 0:00:33]} 31. Rb4 {[%clk 0:01:28]}  Rc5 {[%clk 0:00:33]} 32. Rxb7 {[%clk 0:01:28]}  Rxa5 {[%clk 0:00:32]} 33. f4 {[%clk 0:01:27]}  Ra2 {[%clk 0:00:27]} 34. Kf1 {[%clk 0:01:27]}  Ng6 {[%clk 0:00:24]} 35. Bd3 {[%clk 0:01:27]}  Nf8 {[%clk 0:00:19]} 36. Rb6 {[%clk 0:01:23]}  a5 {[%clk 0:00:15]} 37. Rxd6 {[%clk 0:01:22]}  Kg8 {[%clk 0:00:11]} 38. Bc4 {[%clk 0:01:19]}  Rc2 {[%clk 0:00:10]} 39. Rc6 {[%clk 0:01:20]}  Kf7 {[%clk 0:00:10]} 40. d6+ {[%clk 0:01:20]}  Kf6 {[%clk 0:00:09]} 41. Rc7 {[%clk 0:01:16]}  Nd7 {[%clk 0:00:08]} 42. Be6 {[%clk 0:01:11]}  Rxc7 {[%clk 0:00:06]} 43. dxc7 {[%clk 0:01:12]}  Nb6 {[%clk 0:00:06]} 44. c8=Q {[%clk 0:01:09]}  Nxc8 {[%clk 0:00:07]} 45. Bxc8 {[%clk 0:01:10]}  a4 {[%clk 0:00:07]} 46. f5 {[%clk 0:01:10]}  a3 {[%clk 0:00:06]} 47. Be6 {[%clk 0:01:10]}  g6 {[%clk 0:00:07]} 48. Ba2 {[%clk 0:01:08]}  Kxf5 {[%clk 0:00:06]} 1/2-1/2


[Site "https://www.chess.com"]

[Event "Titled Tuesday Blitz April 26 Early 2022"]
[White "Kaminski, Victor"]
[Black "Migot, Tangi"]
[WhiteFideId "1131630"]
[BlackFideId "662445"]
[WhiteElo "2181"]
[BlackElo "2517"]
[Result "1/2-1/2"]
[Round "10"]
[TimeControl "180+1"]
[Date "2022.04.26"]
[WhiteClock "0:00:06"]
[BlackClock "0:00:08"]

1. e4 {[%clk 0:03:00]}  g6 {[%clk 0:03:00]} 2. Bc4 {[%clk 0:02:58]}  Bg7 {[%clk 0:03:00]} 3. Qf3 {[%clk 0:02:58]}  e6 {[%clk 0:03:00]} 4. h4 {[%clk 0:02:58]}  d5 {[%clk 0:02:56]} 5. exd5 {[%clk 0:02:57]}  exd5 {[%clk 0:02:56]} 6. Bxd5 {[%clk 0:02:57]}  Nf6 {[%clk 0:02:55]} 7. Bxb7 {[%clk 0:02:57]}  Bxb7 {[%clk 0:02:53]} 8. Qxb7 {[%clk 0:02:58]}  Nbd7 {[%clk 0:02:53]} 9. Nc3 {[%clk 0:02:52]}  O-O {[%clk 0:02:53]} 10. d3 {[%clk 0:02:52]}  Re8+ {[%clk 0:02:53]} 11. Nge2 {[%clk 0:02:52]}  c5 {[%clk 0:02:48]} 12. Bg5 {[%clk 0:02:48]}  h6 {[%clk 0:02:45]} 13. Bf4 {[%clk 0:02:45]}  c4 {[%clk 0:02:32]} 14. O-O-O {[%clk 0:02:41]}  cxd3 {[%clk 0:02:20]} 15. Rxd3 {[%clk 0:02:42]}  Qe7 {[%clk 0:02:05]} 16. Re3 {[%clk 0:02:23]}  Qc5 {[%clk 0:01:53]} 17. Rd1 {[%clk 0:02:15]}  Nb6 {[%clk 0:01:14]} 18. Rxe8+ {[%clk 0:01:56]}  Rxe8 {[%clk 0:01:15]} 19. Be3 {[%clk 0:01:56]}  Qa5 {[%clk 0:01:11]} 20. Nd4 {[%clk 0:01:38]}  Nc4 {[%clk 0:01:04]} 21. Bf4 {[%clk 0:01:15]}  Qh5 {[%clk 0:00:44]} 22. g3 {[%clk 0:01:09]}  Qc5 {[%clk 0:00:44]} 23. Qc6 {[%clk 0:01:02]}  Qb4 {[%clk 0:00:43]} 24. Qb5 {[%clk 0:00:58]}  Qxb5 {[%clk 0:00:37]} 25. Ndxb5 {[%clk 0:00:58]}  Ne4 {[%clk 0:00:34]} 26. Re1 {[%clk 0:00:32]}  f5 {[%clk 0:00:18]} 27. f3 {[%clk 0:00:29]}  Nf6 {[%clk 0:00:15]} 28. Rxe8+ {[%clk 0:00:29]}  Nxe8 {[%clk 0:00:16]} 29. Nxa7 {[%clk 0:00:30]}  Nf6 {[%clk 0:00:12]} 30. b3 {[%clk 0:00:24]}  Nb6 {[%clk 0:00:12]} 31. a4 {[%clk 0:00:20]}  Nh5 {[%clk 0:00:10]} 32. Ne2 {[%clk 0:00:15]}  Nd5 {[%clk 0:00:10]} 33. Bd6 {[%clk 0:00:13]}  g5 {[%clk 0:00:07]} 34. hxg5 {[%clk 0:00:12]}  hxg5 {[%clk 0:00:08]} 35. a5 {[%clk 0:00:08]}  g4 {[%clk 0:00:08]} 36. fxg4 {[%clk 0:00:08]}  fxg4 {[%clk 0:00:08]} 37. Nc6 {[%clk 0:00:05]}  Bh6+ {[%clk 0:00:09]} 38. Kb2 {[%clk 0:00:05]}  Be3 {[%clk 0:00:09]} 39. a6 {[%clk 0:00:05]}  Kf7 {[%clk 0:00:08]} 40. a7 {[%clk 0:00:04]}  Nb6 {[%clk 0:00:06]} 41. Bc7 {[%clk 0:00:03]}  Na8 {[%clk 0:00:06]} 42. Ba5 {[%clk 0:00:04]}  Ke6 {[%clk 0:00:07]} 43. Ned4+ {[%clk 0:00:03]}  Kd7 {[%clk 0:00:07]} 44. c3 {[%clk 0:00:02]}  Nxg3 {[%clk 0:00:07]} 45. Ne5+ {[%clk 0:00:01]}  Kd6 {[%clk 0:00:05]} 46. Ndc6 {[%clk 0:00:02]}  Ne4 {[%clk 0:00:04]} 47. Bb4+ {[%clk 0:00:03]}  Kc7 {[%clk 0:00:04]} 48. Kc2 {[%clk 0:00:04]}  Kb7 {[%clk 0:00:05]} 49. Kd3 {[%clk 0:00:04]}  Bxa7 {[%clk 0:00:04]} 50. Nxa7 {[%clk 0:00:04]}  Kxa7 {[%clk 0:00:04]} 51. Kxe4 {[%clk 0:00:05]}  g3 {[%clk 0:00:05]} 52. Nf3 {[%clk 0:00:05]}  g2 {[%clk 0:00:05]} 53. Ng1 {[%clk 0:00:06]}  Kb7 {[%clk 0:00:05]} 54. Bc5 {[%clk 0:00:06]}  Nc7 {[%clk 0:00:06]} 55. b4 {[%clk 0:00:07]}  Ne6 {[%clk 0:00:06]} 56. Bd4 {[%clk 0:00:07]}  Kc6 {[%clk 0:00:06]} 57. Kf3 {[%clk 0:00:07]}  Kd5 {[%clk 0:00:06]} 58. Bf6 {[%clk 0:00:07]}  Kc4 {[%clk 0:00:06]} 59. Kxg2 {[%clk 0:00:08]}  Nf4+ {[%clk 0:00:06]} 60. Kf3 {[%clk 0:00:08]}  Nd5 {[%clk 0:00:07]} 61. Ne2 {[%clk 0:00:08]}  Nxf6 {[%clk 0:00:07]} 62. Ke3 {[%clk 0:00:08]}  Nd5+ {[%clk 0:00:07]} 63. Kd2 {[%clk 0:00:08]}  Nxb4 {[%clk 0:00:07]} 64. cxb4 {[%clk 0:00:06]}  Kxb4 {[%clk 0:00:08]} 1/2-1/2


[Site "https://www.chess.com"]

[Event "Titled Tuesday Blitz April 26 Early 2022"]
[White "Khamdamova, Afruza"]
[Black "Petrova, Irina"]
[WhiteFideId "14210444"]
[BlackFideId "14124122"]
[WhiteElo "1660"]
[BlackElo "1993"]
[Result "0-1"]
[Round "10"]
[TimeControl "180+1"]
[Date "2022.04.26"]
[WhiteClock "0:00:02"]
[BlackClock "0:00:24"]

1. e4 {[%clk 0:03:00]}  c5 {[%clk 0:02:59]} 2. Nf3 {[%clk 0:03:00]}  Nc6 {[%clk 0:03:00]} 3. d4 {[%clk 0:03:00]}  cxd4 {[%clk 0:03:00]} 4. Nxd4 {[%clk 0:03:00]}  Nf6 {[%clk 0:03:01]} 5. Nc3 {[%clk 0:03:00]}  e5 {[%clk 0:03:01]} 6. Ndb5 {[%clk 0:02:59]}  d6 {[%clk 0:03:01]} 7. Nd5 {[%clk 0:02:59]}  Nxd5 {[%clk 0:03:00]} 8. exd5 {[%clk 0:02:59]}  Nb8 {[%clk 0:03:00]} 9. c4 {[%clk 0:02:59]}  Be7 {[%clk 0:02:57]} 10. Bd3 {[%clk 0:02:56]}  f5 {[%clk 0:02:54]} 11. Be3 {[%clk 0:02:49]}  a6 {[%clk 0:02:47]} 12. Nc3 {[%clk 0:02:47]}  e4 {[%clk 0:02:43]} 13. Bc2 {[%clk 0:02:46]}  O-O {[%clk 0:02:43]} 14. f4 {[%clk 0:02:43]}  b5 {[%clk 0:02:26]} 15. cxb5 {[%clk 0:02:38]}  axb5 {[%clk 0:02:27]} 16. Nxb5 {[%clk 0:02:31]}  Ba6 {[%clk 0:02:27]} 17. a4 {[%clk 0:02:28]}  Qa5+ {[%clk 0:02:22]} 18. Kf2 {[%clk 0:02:11]}  Nd7 {[%clk 0:02:17]} 19. Re1 {[%clk 0:01:11]}  Bxb5 {[%clk 0:02:11]} 20. axb5 {[%clk 0:01:08]}  Qxb5 {[%clk 0:02:11]} 21. Ba4 {[%clk 0:00:53]}  Qxb2+ {[%clk 0:01:52]} 22. Re2 {[%clk 0:00:52]}  Qb7 {[%clk 0:01:51]} 23. Bc6 {[%clk 0:00:39]}  Rxa1 {[%clk 0:01:45]} 24. Qxa1 {[%clk 0:00:40]}  Qc7 {[%clk 0:01:40]} 25. Ra2 {[%clk 0:00:39]}  Nb8 {[%clk 0:01:28]} 26. Ra7 {[%clk 0:00:38]}  Qd8 {[%clk 0:01:27]} 27. Qa4 {[%clk 0:00:32]}  Nxc6 {[%clk 0:01:22]} 28. Qxc6 {[%clk 0:00:32]}  Bf6 {[%clk 0:01:18]} 29. Rd7 {[%clk 0:00:31]}  Qb8 {[%clk 0:01:17]} 30. Qxd6 {[%clk 0:00:28]}  Qb2+ {[%clk 0:01:16]} 31. Kg3 {[%clk 0:00:28]}  Qe2 {[%clk 0:01:13]} 32. Qc5 {[%clk 0:00:12]}  h5 {[%clk 0:01:06]} 33. h3 {[%clk 0:00:11]}  h4+ {[%clk 0:00:59]} 34. Kh2 {[%clk 0:00:11]}  Qe1 {[%clk 0:00:54]} 35. Bf2 {[%clk 0:00:11]}  Qd2 {[%clk 0:00:49]} 36. Rc7 {[%clk 0:00:10]}  Qxf4+ {[%clk 0:00:48]} 37. g3 {[%clk 0:00:09]}  hxg3+ {[%clk 0:00:47]} 38. Bxg3 {[%clk 0:00:09]}  Qd2+ {[%clk 0:00:47]} 39. Kh1 {[%clk 0:00:09]}  Qd1+ {[%clk 0:00:44]} 40. Kg2 {[%clk 0:00:08]}  Bd4 {[%clk 0:00:39]} 41. Qc1 {[%clk 0:00:04]}  Qf3+ {[%clk 0:00:35]} 42. Kh2 {[%clk 0:00:03]}  Qe2+ {[%clk 0:00:33]} 43. Kh1 {[%clk 0:00:03]}  Be3 {[%clk 0:00:26]} 44. Qc2 {[%clk 0:00:02]}  Qf1+ {[%clk 0:00:24]} 45. Kh2 {[%clk 0:00:02]}  Qg1# {[%clk 0:00:24]} 0-1


[Site "https://www.chess.com"]

[Event "Titled Tuesday Blitz April 26 Early 2022"]
[White "Kosteniuk, Alexandra"]
[Black "Sanchez, Robert"]
[WhiteFideId "4128125"]
[BlackFideId "2034360"]
[WhiteElo "2469"]
[BlackElo "2411"]
[Result "0-1"]
[Round "10"]
[TimeControl "180+1"]
[Date "2022.04.26"]
[WhiteClock "0:01:04"]
[BlackClock "0:01:12"]

1. Nf3 {[%clk 0:03:00]}  d5 {[%clk 0:02:59]} 2. g3 {[%clk 0:03:00]}  c6 {[%clk 0:03:00]} 3. Bg2 {[%clk 0:03:01]}  Nf6 {[%clk 0:03:01]} 4. O-O {[%clk 0:03:01]}  Bf5 {[%clk 0:03:01]} 5. d3 {[%clk 0:03:01]}  h6 {[%clk 0:03:00]} 6. Nbd2 {[%clk 0:03:01]}  e6 {[%clk 0:02:59]} 7. Re1 {[%clk 0:03:01]}  Bg4 {[%clk 0:02:57]} 8. e4 {[%clk 0:03:00]}  Be7 {[%clk 0:02:53]} 9. h3 {[%clk 0:02:59]}  Bxf3 {[%clk 0:02:54]} 10. Qxf3 {[%clk 0:02:58]}  O-O {[%clk 0:02:53]} 11. e5 {[%clk 0:02:58]}  Nfd7 {[%clk 0:02:53]} 12. d4 {[%clk 0:02:58]}  c5 {[%clk 0:02:50]} 13. c4 {[%clk 0:02:57]}  Nb6 {[%clk 0:02:45]} 14. dxc5 {[%clk 0:02:56]}  Bxc5 {[%clk 0:02:45]} 15. Nb3 {[%clk 0:02:56]}  Bb4 {[%clk 0:02:45]} 16. Bd2 {[%clk 0:02:54]}  Qe7 {[%clk 0:02:34]} 17. cxd5 {[%clk 0:02:48]}  Nxd5 {[%clk 0:02:32]} 18. Bxb4 {[%clk 0:02:47]}  Qxb4 {[%clk 0:02:31]} 19. Rad1 {[%clk 0:02:45]}  Nc6 {[%clk 0:02:31]} 20. Re4 {[%clk 0:02:45]}  Qb6 {[%clk 0:02:25]} 21. Qe2 {[%clk 0:02:43]}  Rad8 {[%clk 0:02:19]} 22. Rg4 {[%clk 0:02:40]}  Nde7 {[%clk 0:02:10]} 23. Rxd8 {[%clk 0:02:16]}  Rxd8 {[%clk 0:02:09]} 24. Kh2 {[%clk 0:02:12]}  Ng6 {[%clk 0:01:51]} 25. f4 {[%clk 0:02:01]}  Nd4 {[%clk 0:01:41]} 26. Nxd4 {[%clk 0:01:55]}  Rxd4 {[%clk 0:01:41]} 27. Qc2 {[%clk 0:01:48]}  Qd8 {[%clk 0:01:22]} 28. h4 {[%clk 0:01:33]}  Nxe5 {[%clk 0:01:18]} 29. fxe5 {[%clk 0:01:29]}  Rxg4 {[%clk 0:01:18]} 30. Bxb7 {[%clk 0:01:28]}  Rd4 {[%clk 0:01:18]} 31. Bg2 {[%clk 0:01:28]}  Rd2 {[%clk 0:01:17]} 32. Qb3 {[%clk 0:01:08]}  Qd5 {[%clk 0:01:11]} 33. Qxd5 {[%clk 0:01:04]}  exd5 {[%clk 0:01:12]} 34. Kg1 {[%clk 0:01:04]}  d4 {[%clk 0:01:12]} 0-1


[Site "https://www.chess.com"]

[Event "Titled Tuesday Blitz April 26 Early 2022"]
[White "Kotepalli, Sai Nirupama"]
[Black "Skliarov, Viktor"]
[WhiteFideId "5039444"]
[BlackFideId "14106736"]
[WhiteElo "2390"]
[BlackElo "2229"]
[Result "0-1"]
[Round "10"]
[TimeControl "180+1"]
[Date "2022.04.26"]
[WhiteClock "0:00:15"]
[BlackClock "0:00:55"]

1. e4 {[%clk 0:03:00]}  c5 {[%clk 0:02:44]} 2. Nf3 {[%clk 0:03:00]}  Nc6 {[%clk 0:02:44]} 3. d3 {[%clk 0:02:59]}  g6 {[%clk 0:02:43]} 4. g3 {[%clk 0:02:59]}  Bg7 {[%clk 0:02:43]} 5. Bg2 {[%clk 0:02:58]}  e6 {[%clk 0:02:43]} 6. O-O {[%clk 0:02:57]}  Nge7 {[%clk 0:02:44]} 7. c3 {[%clk 0:02:55]}  O-O {[%clk 0:02:44]} 8. Qe2 {[%clk 0:02:55]}  d5 {[%clk 0:02:44]} 9. e5 {[%clk 0:02:54]}  b5 {[%clk 0:02:44]} 10. Bf4 {[%clk 0:02:49]}  b4 {[%clk 0:02:44]} 11. a3 {[%clk 0:02:46]}  bxc3 {[%clk 0:02:42]} 12. bxc3 {[%clk 0:02:47]}  Ba6 {[%clk 0:02:41]} 13. h4 {[%clk 0:02:45]}  Rb8 {[%clk 0:02:22]} 14. Nbd2 {[%clk 0:02:43]}  Qa5 {[%clk 0:02:20]} 15. Rfc1 {[%clk 0:02:38]}  Rb2 {[%clk 0:02:17]} 16. Bf1 {[%clk 0:02:28]}  Rfb8 {[%clk 0:02:15]} 17. h5 {[%clk 0:02:20]}  Qa4 {[%clk 0:02:08]} 18. h6 {[%clk 0:02:18]}  Bf8 {[%clk 0:02:04]} 19. Ng5 {[%clk 0:02:16]}  Na5 {[%clk 0:01:57]} 20. Qf3 {[%clk 0:02:10]}  Nf5 {[%clk 0:01:48]} 21. g4 {[%clk 0:01:42]}  Nxh6 {[%clk 0:01:45]} 22. Be2 {[%clk 0:01:40]}  Nb3 {[%clk 0:01:32]} 23. Bd1 {[%clk 0:01:27]}  Nxd2 {[%clk 0:01:28]} 24. Bxd2 {[%clk 0:01:11]}  Qxg4+ {[%clk 0:01:26]} 25. Qxg4 {[%clk 0:01:08]}  Nxg4 {[%clk 0:01:27]} 26. Bxg4 {[%clk 0:01:05]}  Rxd2 {[%clk 0:01:27]} 27. Rab1 {[%clk 0:01:01]}  Rdb2 {[%clk 0:01:26]} 28. Rxb2 {[%clk 0:01:00]}  Rxb2 {[%clk 0:01:27]} 29. d4 {[%clk 0:00:58]}  c4 {[%clk 0:01:27]} 30. Ra1 {[%clk 0:00:55]}  h5 {[%clk 0:01:25]} 31. Bh3 {[%clk 0:00:53]}  Bc8 {[%clk 0:01:15]} 32. a4 {[%clk 0:00:47]}  a5 {[%clk 0:01:16]} 33. Kf1 {[%clk 0:00:44]}  Bd7 {[%clk 0:01:13]} 34. Nf3 {[%clk 0:00:41]}  Be7 {[%clk 0:01:09]} 35. Ng1 {[%clk 0:00:34]}  g5 {[%clk 0:01:07]} 36. Ne2 {[%clk 0:00:32]}  Kg7 {[%clk 0:01:04]} 37. f4 {[%clk 0:00:26]}  g4 {[%clk 0:01:03]} 38. Bg2 {[%clk 0:00:25]}  h4 {[%clk 0:01:03]} 39. f5 {[%clk 0:00:25]}  Bg5 {[%clk 0:01:02]} 40. fxe6 {[%clk 0:00:23]}  fxe6 {[%clk 0:01:02]} 41. Bh1 {[%clk 0:00:21]}  Be8 {[%clk 0:01:00]} 42. Bg2 {[%clk 0:00:18]}  Bg6 {[%clk 0:01:00]} 43. Bh1 {[%clk 0:00:18]}  Bd3 {[%clk 0:01:00]} 44. Re1 {[%clk 0:00:18]}  Bd2 {[%clk 0:00:55]} 45. Rd1 {[%clk 0:00:15]}  Bxc3 {[%clk 0:00:55]} 0-1


[Site "https://www.chess.com"]

[Event "Titled Tuesday Blitz April 26 Early 2022"]
[White "Kuznetsov, Mikhail"]
[Black "Wartiovaara, Oliver"]
[WhiteFideId "4117190"]
[BlackFideId "513024"]
[WhiteElo "1981"]
[BlackElo "1971"]
[Result "1-0"]
[Round "10"]
[TimeControl "180+1"]
[Date "2022.04.26"]
[WhiteClock "0:00:43"]
[BlackClock "0:00:24"]

1. Nf3 {[%clk 0:03:00]}  Nf6 {[%clk 0:02:59]} 2. g3 {[%clk 0:03:00]}  g6 {[%clk 0:02:59]} 3. Bg2 {[%clk 0:03:01]}  Bg7 {[%clk 0:03:00]} 4. O-O {[%clk 0:03:02]}  O-O {[%clk 0:03:01]} 5. d3 {[%clk 0:03:02]}  d6 {[%clk 0:03:02]} 6. e4 {[%clk 0:03:02]}  e5 {[%clk 0:03:01]} 7. c3 {[%clk 0:02:58]}  c6 {[%clk 0:03:00]} 8. Nfd2 {[%clk 0:02:58]}  b6 {[%clk 0:02:53]} 9. f4 {[%clk 0:02:57]}  b5 {[%clk 0:02:53]} 10. Nf3 {[%clk 0:02:55]}  Nbd7 {[%clk 0:02:45]} 11. Na3 {[%clk 0:02:47]}  Qb6+ {[%clk 0:02:39]} 12. Kh1 {[%clk 0:02:47]}  Re8 {[%clk 0:02:31]} 13. Nc2 {[%clk 0:02:45]}  a5 {[%clk 0:02:29]} 14. Ne3 {[%clk 0:02:42]}  b4 {[%clk 0:02:20]} 15. f5 {[%clk 0:02:41]}  Ba6 {[%clk 0:02:09]} 16. g4 {[%clk 0:02:34]}  Nc5 {[%clk 0:01:59]} 17. c4 {[%clk 0:02:32]}  d5 {[%clk 0:01:47]} 18. g5 {[%clk 0:02:20]}  dxe4 {[%clk 0:01:47]} 19. gxf6 {[%clk 0:02:18]}  exf3 {[%clk 0:01:47]} 20. Qxf3 {[%clk 0:02:18]}  e4 {[%clk 0:01:36]} 21. dxe4 {[%clk 0:02:17]}  Bxf6 {[%clk 0:01:35]} 22. fxg6 {[%clk 0:02:16]}  Nxe4 {[%clk 0:01:35]} 23. gxh7+ {[%clk 0:02:08]}  Kh8 {[%clk 0:01:26]} 24. Qf5 {[%clk 0:02:02]}  Re5 {[%clk 0:01:14]} 25. Qd7 {[%clk 0:01:35]}  c5 {[%clk 0:01:01]} 26. Nd5 {[%clk 0:01:20]}  Qe6 {[%clk 0:00:45]} 27. Qxe6 {[%clk 0:01:17]}  fxe6 {[%clk 0:00:46]} 28. Nxf6 {[%clk 0:01:16]}  Bxc4 {[%clk 0:00:46]} 29. Bxe4 {[%clk 0:00:53]}  Rxe4 {[%clk 0:00:41]} 30. Nxe4 {[%clk 0:00:54]}  Bxf1 {[%clk 0:00:41]} 31. Be3 {[%clk 0:00:51]}  Bc4 {[%clk 0:00:28]} 32. Bxc5 {[%clk 0:00:49]}  Bd5 {[%clk 0:00:27]} 33. Re1 {[%clk 0:00:48]}  Rc8 {[%clk 0:00:27]} 34. Bd4+ {[%clk 0:00:48]}  Kxh7 {[%clk 0:00:26]} 35. Kg1 {[%clk 0:00:45]}  Rc2 {[%clk 0:00:20]} 36. Nf6+ {[%clk 0:00:44]}  Kg6 {[%clk 0:00:20]} 37. Nxd5 {[%clk 0:00:45]}  exd5 {[%clk 0:00:20]} 38. Re5 {[%clk 0:00:45]}  Rc1+ {[%clk 0:00:20]} 39. Kg2 {[%clk 0:00:44]}  Rc2+ {[%clk 0:00:20]} 40. Kg3 {[%clk 0:00:44]}  a4 {[%clk 0:00:21]} 41. Rxd5 {[%clk 0:00:43]}  b3 {[%clk 0:00:22]} 42. axb3 {[%clk 0:00:43]}  axb3 {[%clk 0:00:23]} 43. Rb5 {[%clk 0:00:43]}  Rd2 {[%clk 0:00:23]} 44. Bc3 {[%clk 0:00:43]}  Rd3+ {[%clk 0:00:24]} 45. Kg2 {[%clk 0:00:43]}  Re3 {[%clk 0:00:23]} 46. Rxb3 {[%clk 0:00:43]}  Re4 {[%clk 0:00:24]} 1-0


[Site "https://www.chess.com"]